lending/lending_fUSD_20250501
["ID","MTS","AMOUNT","RATE_DAILY","PERIOD"]
[359514567,1746085842549,-305.0,0.00032877,2]
[359514568,1746085842559,-500.0,0.00032877,5]
[359514569,1746085842568,-6456.36,0.00032877,2]
[359514570,1746085842577,-176.59,0.00032877,30]
[359514571,1746085842586,-331.98,0.00032877,2]
[359514572,1746085842596,-175.0,0.00032877,2]
[359514573,1746085842605,-231.0,0.00032877,2]
[359514574,1746085842615,-396.16628054,0.00032877,2]
[359514575,1746085842624,-200.0,0.00032877,2]
[359514576,1746085842633,-1340.0,0.00032895,2]
[359514577,1746085842642,-1028.932,0.00032895,2]
[359514578,1746085842652,-154.083,0.00032895,2]
[359514579,1746085842661,-797.0,0.00032895,2]
[359514580,1746085842670,-1299.805,0.00032895,2]
[359514581,1746085842680,-1053.242,0.00032895,2]
[359514582,1746085842689,-1492.729,0.00032895,2]
[359514583,1746085842698,-596.257,0.00032895,2]
[359514584,1746085842707,-630.791,0.00032895,2]
[359514585,1746085842717,-2125.147,0.00032895,2]
[359514586,1746085842727,-6750.0,0.00032895,2]
[359514587,1746085842736,-885.477,0.00032895,2]
[359514588,1746085842746,-201.076,0.00032895,2]
[359514589,1746085842755,-264.778,0.00032895,2]
[359514590,1746085842764,-878.0,0.00032895,2]
[359514591,1746085842774,-4003.0,0.00032895,2]
[359514592,1746085842783,-600.0,0.000329,2]
[359514593,1746085842793,-204.10556556,0.0003293,30]
[359514594,1746085842802,-949.05,0.0003293,2]
[359514595,1746085842811,-5550.29541048,0.00032969,28]
[359514596,1746085842820,-564.03684431,0.00033,120]
[359514597,1746085842829,-4561.98759854,0.00033,2]
[359514598,1746085842838,-650.0,0.00033,2]
[359514599,1746085842847,-237.217446,0.00033067,2]
[359514600,1746085842857,-216.8187967,0.000331,2]
[359514601,1746085842866,-1000.0,0.00033165,2]
[359514602,1746085842875,-200.0,0.00033206,2]
[359514603,1746085842885,-150.0,0.00033309,2]
[359514604,1746085842895,-1170.33504023,0.000335,2]
[359514605,1746085842904,-200.0,0.00033538,2]
[359514606,1746085842914,-2911.49,0.000338,7]
[359514607,1746085842923,-5550.29541048,0.00033831,29]
[359514610,1746085842933,-200.0,0.00033873,2]
[359514611,1746085842943,-2033.18940034,0.00034,2]
[359514612,1746085842952,-155.65,0.00034,2]
[359514613,1746085842961,-155.65,0.00034,2]
[359514615,1746085842970,-155.65,0.00034,2]
[359514617,1746085842980,-155.65,0.00034,2]
[359514618,1746085842989,-155.65,0.00034,2]
[359514619,1746085842997,-155.65,0.00034,2]
[359514620,1746085843007,-155.65,0.00034,2]
[359514621,1746085843016,-155.65,0.00034,2]
[359514622,1746085843026,-155.65,0.00034,2]
[359514623,1746085843035,-150.0,0.00034102,2]
[359514624,1746085843045,-200.0,0.00034212,2]
[359514626,1746085843054,-150.0,0.00034246,2]
[359514627,1746085843064,-13389.73962372,0.00034357,30]
[359514628,1746085843074,-150.0,0.00034548,10]
[359514629,1746085843084,-169.04,0.00034648,2]
[359514630,1746085843095,-5550.29541048,0.00034693,31]
[359514632,1746085843105,-150.0,0.00034895,2]
[359514635,1746085843118,-42326.55731167,0.0003498,2]
[359514637,1746085843130,-132271.92933389,0.00035,2]
[359514638,1746085843140,-1005.0,0.00035,5]
[359514640,1746085843155,-228.03168548,0.00035,2]
[359514642,1746085843165,-1000.0,0.00035,4]
[359514644,1746085843179,-558.45262932,0.00035,30]
[359514646,1746085843190,-700.0,0.00035,2]
[359514648,1746085843201,-359.65006695,0.00035,7]
[359514649,1746085843211,-399.25331377,0.00035,30]
[359514651,1746085843222,-155.45524774,0.00035078,30]
[359514653,1746085843233,-150.0,0.00035078,30]
[359514655,1746085843244,-708.71399612,0.00035078,30]
[359514656,1746085843253,-949.05,0.00035194,2]
[359514657,1746085843263,-155.894,0.00035337,2]
[359514658,1746085843272,-337.59715316,0.00035371,5]
[359514659,1746085843425,-1500.0,0.00035471,5]
[359514660,1746085843436,-1500.0,0.00035471,5]
[359514661,1746085843446,-1500.0,0.00035471,5]
[359514662,1746085843455,-503.55822071,0.00035471,5]
[359514663,1746085843465,-664.50740952,0.00035471,5]
[359514664,1746085843474,-944.81641743,0.000355,4]
[359514665,1746085843484,-409.04,0.000355,31]
[359514666,1746085843493,-409.04,0.000355,31]
[359514667,1746085843502,-409.04,0.000355,31]
[359514668,1746085843512,-409.04,0.000355,31]
[359514669,1746085843521,-409.04,0.000355,31]
[359514670,1746085843531,-409.04,0.000355,31]
[359514671,1746085843541,-409.04,0.000355,31]
[359514672,1746085843550,-409.04,0.000355,31]
[359514673,1746085843559,-409.04,0.000355,31]
[359514674,1746085843568,-409.04,0.000355,31]
[359514675,1746085843577,-409.04,0.000355,31]
[359514676,1746085843587,-409.04,0.000355,31]
[359514677,1746085843596,-5550.29541048,0.00035555,33]
[359514678,1746085843606,-150.0,0.00035616,2]
[359514679,1746085843616,-1108.0071482,0.00035616,2]
[359514680,1746085843626,-150.0,0.00035688,2]
[359514681,1746085843635,-243.0,0.000357,48]
[359514682,1746085843645,-250.0,0.000358,7]
[359514683,1746085843657,-1340.0,0.00035895,2]
[359514684,1746085843666,-923.0,0.00035895,2]
[359514685,1746085843676,-797.0,0.00035895,2]
[359514686,1746085843685,-1289.0,0.00035895,2]
[359514687,1746085843694,-913.0,0.00035895,2]
[359514688,1746085843703,-1449.0,0.00035895,2]
[359514689,1746085843713,-580.0,0.00035895,2]
[359514690,1746085843722,-549.0,0.00035895,2]
[359514691,1746085843731,-2070.0,0.00035895,2]
[359514692,1746085843741,-6750.0,0.00035895,2]
[359514693,1746085843757,-876.0,0.00035895,2]
[359514694,1746085843767,-153.0,0.00035895,2]
[359514695,1746085843776,-153.0,0.00035895,2]
[359514696,1746085843786,-878.0,0.00035895,2]
[359514697,1746085843798,-4003.0,0.00035895,2]
[359514698,1746085843808,-33833.20755427,0.0003593,7]
[359514699,1746085843817,-3005.45970215,0.00036,5]
[359514700,1746085843827,-201.0,0.00036,30]
[359514701,1746085843836,-6043.4123399,0.00036,2]
[359514702,1746085843846,-151.0,0.00036,2]
[359514703,1746085843855,-151.0,0.00036,2]
[359514704,1746085843864,-5550.29541048,0.00036417,34]
[359514705,1746085843874,-150.0,0.00036482,2]
[359514706,1746085843883,-214.0,0.0003665,2]
[359514707,1746085843892,-160.0,0.000367,51]
[359514708,1746085843903,-585.0,0.00036793,5]
[359514709,1746085843912,-150.0,0.00036986,2]
[359514710,1746085843921,-750.0,0.00037,2]
[359514711,1746085843931,-322.84894421,0.00037033,2]
[359514712,1746085843940,-168.611437,0.00037252,2]
[359514713,1746085843949,-150.0,0.00037275,2]
[359514714,1746085843958,-5550.29541048,0.00037279,36]
[359514715,1746085843967,-312.12783251,0.00037349,2]
[359514716,1746085843977,-152.0,0.00037349,3]
[359514717,1746085843986,-3975.40454564,0.00037376,7]
[359514718,1746085843995,-154.02,0.00037387,2]
[359514719,1746085844004,-1599.82,0.00037387,2]
[359514720,1746085844013,-4811.52,0.00037387,2]
[359514721,1746085844023,-1000.0,0.00037387,2]
[359514722,1746085844032,-300.0,0.00037387,2]
[359514723,1746085844042,-211.34,0.00037387,2]
[359514724,1746085844051,-200.0,0.00037387,2]
[359514725,1746085844061,-1092.65,0.00037387,2]
[359514726,1746085844070,-150.0,0.00037387,2]
[359514727,1746085844079,-10497.66,0.00037387,2]
[359514728,1746085844089,-1599.82,0.00037397,2]
[359514729,1746085844098,-1599.82,0.00037407,2]
[359514730,1746085844107,-1599.82,0.00037417,2]
[359514731,1746085844116,-1599.82,0.00037427,2]
[359514732,1746085844125,-1599.82,0.00037437,2]
[359514733,1746085844135,-1599.82,0.00037446,2]
[359514734,1746085844144,-1599.82,0.00037456,2]
[359514735,1746085844156,-949.05,0.00037458,2]
[359514736,1746085844165,-1599.82,0.00037466,2]
[359514737,1746085844174,-1599.82,0.00037476,2]
[359514738,1746085844183,-1599.82,0.00037486,2]
[359514739,1746085844196,-2641.87977231,0.0003749,2]
[359514740,1746085844205,-1599.82,0.00037496,2]
[359514741,1746085844215,-1599.82,0.00037505,2]
[359514742,1746085844224,-1599.82,0.00037515,2]
[359514743,1746085844233,-1599.82,0.00037525,2]
[359514744,1746085844243,-1599.82,0.00037535,2]
[359514745,1746085844252,-1599.82,0.00037545,2]
[359514746,1746085844262,-1599.82,0.00037555,2]
[359514747,1746085844271,-1599.82,0.00037564,2]
[359514748,1746085844280,-1599.82,0.00037574,2]
[359514749,1746085844290,-4210.05006415,0.0003759,2]
[359514750,1746085844299,-521.46877761,0.000377,90]
[359514751,1746085844310,-160.0,0.000377,54]
[359514752,1746085844320,-214.0,0.0003777,2]
[359514753,1746085844329,-7031.76322372,0.00038,2]
[359514754,1746085844338,-501.03936166,0.00038,30]
[359514755,1746085844348,-150.0,0.00038068,2]
[359514756,1746085844358,-409.04,0.000381,31]
[359514757,1746085844367,-409.04,0.000381,31]
[359514758,1746085844377,-409.04,0.000381,31]
[359514759,1746085844387,-409.04,0.000381,31]
[359514760,1746085844396,-409.04,0.000381,31]
[359514761,1746085844408,-409.04,0.000381,31]
[359514762,1746085844417,-409.04,0.000381,31]
[359514763,1746085844427,-409.04,0.000381,31]
[359514764,1746085844437,-409.04,0.000381,31]
[359514765,1746085844446,-409.04,0.000381,31]
[359514766,1746085844456,-409.04,0.000381,31]
[359514767,1746085844465,-409.04,0.000381,31]
[359514768,1746085844475,-409.04,0.000381,31]
[359514769,1746085844485,-409.04,0.000381,31]
[359514770,1746085844495,-409.04,0.000381,31]
[359514771,1746085844504,-409.04,0.000381,31]
[359514772,1746085844515,-409.04,0.000381,31]
[359514773,1746085844526,-409.04,0.000381,31]
[359514774,1746085844537,-409.04,0.000381,31]
[359514775,1746085844547,-409.04,0.000381,31]
[359514776,1746085844557,-409.04,0.000381,31]
[359514777,1746085844567,-409.04,0.000381,31]
[359514778,1746085844576,-409.04,0.000381,31]
[359514779,1746085844587,-409.04,0.000381,31]
[359514780,1746085844596,-883.91875587,0.00038141,2]
[359514781,1746085844606,-5550.29541048,0.00038141,38]
[359514782,1746085844615,-150.0,0.00038356,2]
[359514783,1746085844625,-176.59,0.00038356,30]
[359514784,1746085844634,-215.5267442,0.00038356,2]
[359514785,1746085844643,-5690.15,0.000384,14]
[359514786,1746085844654,-39380.61,0.000384,14]
[359514787,1746085844663,-151.0,0.000384,14]
[359514788,1746085844673,-160.7731,0.000384,14]
[359514789,1746085844682,-151.0,0.000384,14]
[359514790,1746085844692,-151.0,0.000384,14]
[359514791,1746085844701,-333.188523,0.000384,14]
[359514792,1746085844712,-151.0,0.000384,14]
[359514793,1746085844722,-333.188523,0.000384,14]
[359514794,1746085844731,-151.0,0.000384,14]
[359514795,1746085844740,-196.840339,0.000384,14]
[359514796,1746085844753,-151.0,0.000384,14]
[359514797,1746085844762,-198.713687,0.000384,14]
[359514798,1746085844772,-151.0,0.000384,14]
[359514799,1746085844782,-198.713687,0.000384,14]
[359514800,1746085844791,-151.0,0.000384,14]
[359514801,1746085844801,-151.0,0.000384,14]
[359514802,1746085844810,-151.0,0.000384,14]
[359514803,1746085844819,-151.0,0.000384,14]
[359514804,1746085844829,-181.839761,0.000384,14]
[359514805,1746085844839,-151.0,0.000384,14]
[359514806,1746085844848,-177.823338,0.000384,14]
[359514807,1746085844858,-177.823338,0.000384,14]
[359514808,1746085844867,-151.0,0.000384,14]
[359514809,1746085844876,-236.764178,0.000384,14]
[359514810,1746085844886,-236.764178,0.000384,14]
[359514811,1746085844895,-1948.600049,0.000384,14]
[359514812,1746085844906,-1948.600049,0.000384,14]
[359514813,1746085844915,-2698.719256,0.000384,14]
[359514814,1746085844925,-2698.719256,0.000384,14]
[359514815,1746085844935,-176.406723,0.000384,14]
[359514816,1746085844944,-158.256317,0.000384,14]
[359514817,1746085844954,-151.0,0.000384,14]
[359514818,1746085844963,-1280.16887,0.000384,14]
[359514819,1746085844973,-1280.16887,0.000384,14]
[359514820,1746085844983,-553.064693,0.000384,14]
[359514821,1746085844992,-553.064693,0.000384,14]
[359514822,1746085845003,-151.0,0.000384,14]
[359514823,1746085845013,-154.510879,0.000384,14]
[359514824,1746085845022,-151.0,0.000384,14]
[359514825,1746085845031,-151.0,0.000384,14]
[359514826,1746085845041,-189.629939,0.000384,14]
[359514827,1746085845051,-189.629939,0.000384,14]
[359514828,1746085845061,-151.0,0.000384,14]
[359514829,1746085845070,-151.0,0.000384,14]
[359514830,1746085845080,-151.0,0.000384,14]
[359514831,1746085845089,-166.497068,0.000384,14]
[359514832,1746085845099,-12500.0,0.00038507,5]
[359514833,1746085845108,-151.0,0.00038507,14]
[359514834,1746085845117,-159.238569,0.00038507,14]
[359514835,1746085845127,-151.0,0.00038507,14]
[359514836,1746085845136,-151.0,0.00038507,14]
[359514837,1746085845146,-166.67,0.00038509,2]
[359514838,1746085845157,-12500.0,0.00038516,5]
[359514839,1746085845167,-151.0,0.00038516,14]
[359514840,1746085845176,-151.0,0.00038516,14]
[359514841,1746085845185,-874.402694,0.00038516,14]
[359514842,1746085845194,-874.402694,0.00038516,14]
[359514843,1746085845204,-358.496672,0.00038516,14]
[359514844,1746085845213,-358.496672,0.00038516,14]
[359514845,1746085845223,-12500.0,0.00038524,5]
[359514846,1746085845234,-12500.0,0.00038533,5]
[359514847,1746085845243,-12500.0,0.00038542,5]
[359514848,1746085845253,-12500.0,0.00038551,5]
[359514849,1746085845263,-12500.0,0.0003856,5]
[359514850,1746085845272,-12500.0,0.00038568,5]
[359514851,1746085845281,-12500.0,0.00038577,5]
[359514852,1746085845291,-12500.0,0.00038586,5]
[359514853,1746085845300,-12500.0,0.00038595,5]
[359514854,1746085845311,-12500.0,0.00038604,5]
[359514855,1746085845321,-308.216953,0.00038612,14]
[359514856,1746085845330,-308.216953,0.00038612,14]
[359514857,1746085845339,-220.216538,0.00038612,14]
[359514858,1746085845349,-220.216538,0.00038612,14]
[359514859,1746085845359,-151.0,0.00038612,14]
[359514860,1746085845369,-12500.0,0.00038612,5]
[359514861,1746085845378,-12500.0,0.00038621,5]
[359514862,1746085845388,-157.55048229,0.00038624,2]
[359514863,1746085845397,-12500.0,0.0003863,5]
[359514864,1746085845407,-2763.34317591,0.0003863,5]
[359514865,1746085845417,-160.0,0.000387,57]
[359514866,1746085845426,-160.72490937,0.00038792,2]
[359514867,1746085845437,-181.5,0.00038852,30]
[359514868,1746085845585,-150.0,0.00038861,2]
[359514869,1746085845596,-214.0,0.0003889,2]
[359514870,1746085845606,-1340.0,0.00038895,2]
[359514871,1746085845616,-923.0,0.00038895,2]
[359514872,1746085845626,-797.0,0.00038895,2]
[359514873,1746085845635,-1289.0,0.00038895,2]
[359514874,1746085845645,-913.0,0.00038895,2]
[359514875,1746085845656,-1449.0,0.00038895,2]
[359514876,1746085845666,-580.0,0.00038895,2]
[359514877,1746085845675,-549.0,0.00038895,2]
[359514878,1746085845685,-2070.0,0.00038895,2]
[359514879,1746085845695,-6750.0,0.00038895,2]
[359514880,1746085845704,-876.0,0.00038895,2]
[359514881,1746085845714,-153.0,0.00038895,2]
[359514882,1746085845723,-878.0,0.00038895,2]
[359514883,1746085845733,-4003.0,0.00038895,2]
[359514884,1746085845743,-1000.0,0.00038933,2]
[359514885,1746085845755,-1104.80592783,0.0003899,2]
[359514886,1746085845765,-100949.2881616,0.00039,2]
[359514887,1746085845775,-6181.15370502,0.00039,10]
[359514888,1746085845785,-764.0,0.00039,2]
[359514889,1746085845796,-236.0,0.00039,2]
[359514890,1746085845805,-800.0,0.00039,2]
[359514891,1746085845815,-374.0,0.00039,2]
[359514892,1746085845826,-5550.29541048,0.00039003,39]
[359514893,1746085845835,-501.24300274,0.00039432,5]
[359514894,1746085845845,-211.34,0.00039464,2]
[359514895,1746085845855,-200.0,0.00039582,13]
[359514896,1746085845865,-200.0,0.00039582,13]
[359514898,1746085845875,-200.0,0.00039582,13]
[359514900,1746085845885,-346.0,0.00039582,13]
[359514902,1746085845895,-500.0,0.00039582,60]
[359514904,1746085845911,-500.0,0.00039582,60]
[359514905,1746085845921,-500.0,0.00039582,60]
[359514906,1746085845932,-500.0,0.00039582,60]
[359514907,1746085845943,-500.0,0.00039582,60]
[359514908,1746085845953,-613.0,0.00039582,60]
[359514909,1746085845964,-150.0,0.00039654,2]
[359514910,1746085845975,-160.0,0.000397,60]
[359514911,1746085845986,-39380.61,0.000397,14]
[359514912,1746085845996,-949.05,0.00039722,2]
[359514913,1746085846007,-150.0,0.00039726,2]
[359514914,1746085846018,-5690.15,0.000398,14]
[359514915,1746085846029,-250.0,0.000398,7]
[359514916,1746085846039,-152.0,0.00039826,4]
[359514917,1746085846053,-5550.29541048,0.00039866,41]
[359514918,1746085846063,-800.0,0.0003997,2]
[359514919,1746085846074,-50000.0,0.0004,40]
[359514920,1746085846085,-1187.802459,0.0004,5]
[359514921,1746085846095,-30000.0,0.0004,5]
[359514922,1746085846107,-214.0,0.0004,2]
[359514923,1746085846117,-346.04541251,0.0004,30]
[359514924,1746085846128,-1000.0,0.0004,12]
[359514925,1746085846139,-1000.0,0.0004,11]
[359514926,1746085846154,-1000.0,0.0004,10]
[359514927,1746085846168,-1000.0,0.0004,9]
[359514928,1746085846178,-1000.0,0.0004,8]
[359514929,1746085846189,-1068.0,0.0004,8]
[359514930,1746085846201,-3556.82893042,0.0004,4]
[359514931,1746085846212,-1000.0,0.0004,7]
[359514932,1746085846222,-1000.0,0.0004,6]
[359514933,1746085846232,-1000.0,0.0004,5]
[359514934,1746085846243,-10305.49890051,0.0004,30]
[359514935,1746085846253,-6703.48993507,0.0004,30]
[359514936,1746085846264,-78566.55328087,0.0004,30]
[359514937,1746085846274,-6503.0598691,0.0004,30]
[359514938,1746085846286,-151.18037823,0.0004,7]
[359514939,1746085846297,-657.7019757,0.0004,30]
[359514940,1746085846309,-151.0,0.0004,14]
[359514941,1746085846319,-163.257342,0.0004,14]
[359514942,1746085846331,-157.6,0.0004,30]
[359514943,1746085846341,-157.6,0.0004,30]
[359514944,1746085846352,-1000.0,0.00040049,7]
[359514945,1746085846363,-126726.9714663,0.00040159,2]
[359514946,1746085846373,-1000.0,0.00040186,7]
[359514947,1746085846384,-150.0,0.00040447,2]
[359514948,1746085846394,-1285.61,0.00040592,5]
[359514949,1746085846407,-409.04,0.000406,31]
[359514950,1746085846417,-409.04,0.000406,31]
[359514951,1746085846427,-409.04,0.000406,31]
[359514952,1746085846437,-409.04,0.000406,31]
[359514953,1746085846447,-409.04,0.000406,31]
[359514954,1746085846457,-409.04,0.000406,31]
[359514955,1746085846467,-409.04,0.000406,31]
[359514956,1746085846476,-409.04,0.000406,31]
[359514957,1746085846486,-409.04,0.000406,31]
[359514958,1746085846496,-409.04,0.000406,31]
[359514959,1746085846505,-409.04,0.000406,31]
[359514960,1746085846515,-409.04,0.000406,31]
[359514961,1746085846524,-409.04,0.000406,31]
[359514962,1746085846534,-409.04,0.000406,31]
[359514963,1746085846544,-409.04,0.000406,31]
[359514964,1746085846553,-409.04,0.000406,31]
[359514965,1746085846563,-409.04,0.000406,31]
[359514966,1746085846572,-409.04,0.000406,31]
[359514967,1746085846582,-409.04,0.000406,31]
[359514968,1746085846592,-409.04,0.000406,31]
[359514969,1746085846601,-409.04,0.000406,31]
[359514970,1746085846611,-409.04,0.000406,31]
[359514971,1746085846620,-409.04,0.000406,31]
[359514972,1746085846629,-409.04,0.000406,31]
[359514973,1746085846640,-1333.0,0.00040658,120]
[359514974,1746085846652,-160.0,0.000407,63]
[359514975,1746085846661,-39380.61,0.000407,14]
[359514977,1746085846674,-500.0,0.000407,120]
[359514978,1746085846687,-5550.29541048,0.00040728,43]
[359514980,1746085846697,-4997.15801357,0.000408,60]
[359514981,1746085846707,-998.1087,0.00040888,7]
[359514983,1746085846717,-50000.0,0.00041,41]
[359514985,1746085846727,-30000.0,0.00041,5]
[359514986,1746085846736,-5690.15,0.00041,14]
[359514987,1746085846745,-850.0,0.00041,2]
[359514988,1746085846759,-150.0,0.00041035,7]
[359514989,1746085846769,-150.0,0.00041068,2]
[359514990,1746085846779,-212.33,0.00041069,120]
[359514991,1746085846788,-150.5,0.00041069,120]
[359514992,1746085846797,-150.5,0.00041069,120]
[359514993,1746085846807,-150.5,0.00041079,120]
[359514994,1746085846817,-150.5,0.00041079,120]
[359514995,1746085846827,-150.5,0.00041079,120]
[359514996,1746085846837,-150.5,0.00041089,120]
[359514997,1746085846847,-150.5,0.00041089,120]
[359514998,1746085846856,-150.5,0.00041089,120]
[359514999,1746085846866,-299.43261,0.00041095,30]
[359515000,1746085846876,-254.31900115,0.00041095,120]
[359515001,1746085846886,-150.0,0.00041095,120]
[359515002,1746085846895,-200.0,0.00041096,10]
[359515003,1746085846906,-500.0,0.00041096,30]
[359515004,1746085846916,-500.0,0.00041096,30]
[359515005,1746085846925,-500.0,0.00041096,30]
[359515006,1746085846935,-500.0,0.00041096,30]
[359515007,1746085846944,-500.0,0.00041096,30]
[359515008,1746085846954,-500.0,0.00041096,30]
[359515009,1746085846963,-500.0,0.00041096,30]
[359515010,1746085846972,-154.0,0.00041096,30]
[359515011,1746085846981,-173.84707053,0.000411,120]
[359515012,1746085846990,-173.84707053,0.000411,120]
[359515013,1746085847000,-173.84707053,0.000411,120]
[359515014,1746085847009,-173.84707053,0.000411,120]
[359515015,1746085847019,-173.84707053,0.000411,120]
[359515016,1746085847029,-173.84,0.000411,120]
[359515017,1746085847038,-152.11618671,0.000411,120]
[359515018,1746085847047,-152.11618671,0.000411,120]
[359515019,1746085847057,-152.11618671,0.000411,120]
[359515020,1746085847066,-152.11618671,0.000411,120]
[359515021,1746085847076,-152.11618671,0.000411,120]
[359515022,1746085847084,-152.11618671,0.000411,120]
[359515023,1746085847093,-152.11618671,0.000411,120]
[359515024,1746085847103,-152.11618671,0.000411,120]
[359515025,1746085847112,-152.11618671,0.000411,120]
[359515026,1746085847121,-152.11618671,0.000411,120]
[359515027,1746085847131,-152.11618671,0.000411,120]
[359515028,1746085847143,-152.11618671,0.000411,120]
[359515029,1746085847154,-152.11618671,0.000411,120]
[359515030,1746085847163,-152.11618671,0.000411,120]
[359515031,1746085847173,-152.11618671,0.000411,120]
[359515032,1746085847182,-152.11,0.000411,120]
[359515033,1746085847192,-164.53574376,0.000411,120]
[359515034,1746085847202,-164.53574376,0.000411,120]
[359515035,1746085847211,-164.53574376,0.000411,120]
[359515036,1746085847220,-164.53574376,0.000411,120]
[359515037,1746085847230,-164.53,0.000411,120]
[359515038,1746085847239,-159.96530643,0.000411,120]
[359515039,1746085847248,-159.96530643,0.000411,120]
[359515040,1746085847257,-159.96530643,0.000411,120]
[359515041,1746085847266,-159.96530643,0.000411,120]
[359515042,1746085847275,-159.96530643,0.000411,120]
[359515043,1746085847284,-159.96530643,0.000411,120]
[359515044,1746085847293,-159.96530643,0.000411,120]
[359515045,1746085847302,-159.96530643,0.000411,120]
[359515046,1746085847312,-159.96530643,0.000411,120]
[359515047,1746085847321,-159.96530643,0.000411,120]
[359515048,1746085847330,-159.96530643,0.000411,120]
[359515049,1746085847339,-159.96,0.000411,120]
[359515050,1746085847348,-1061.0,0.000411,7]
[359515051,1746085847357,-218.97,0.000411,120]
[359515052,1746085847366,-170.3147408,0.000411,120]
[359515053,1746085847375,-214.0,0.0004112,2]
[359515054,1746085847384,-1274.15,0.00041124,5]
[359515055,1746085847394,-150.0,0.00041178,30]
[359515056,1746085847404,-150.0,0.00041205,2]
[359515057,1746085847413,-150.0,0.0004124,2]
[359515058,1746085847423,-299.43261,0.00041295,30]
[359515059,1746085847432,-322.84894421,0.00041317,3]
[359515060,1746085847441,-150.0,0.0004132,30]
[359515061,1746085847451,-150.0,0.00041342,2]
[359515062,1746085847460,-500.0,0.00041369,15]
[359515063,1746085847470,-500.0,0.00041369,15]
[359515064,1746085847479,-500.0,0.00041369,15]
[359515065,1746085847489,-500.0,0.00041369,15]
[359515066,1746085847499,-500.0,0.00041369,15]
[359515067,1746085847508,-500.0,0.00041369,15]
[359515068,1746085847518,-500.0,0.00041369,15]
[359515069,1746085847655,-500.0,0.00041369,15]
[359515070,1746085847664,-400.0,0.0004137,3]
[359515071,1746085847674,-500.0,0.0004137,3]
[359515072,1746085847683,-700.0,0.0004137,3]
[359515073,1746085847692,-700.0,0.0004137,3]
[359515074,1746085847702,-13725.55163081,0.000414,2]
[359515075,1746085847711,-1000.0,0.00041446,14]
[359515076,1746085847721,-150.0,0.00041463,30]
[359515077,1746085847730,-152.0,0.00041478,3]
[359515078,1746085847739,-150.0,0.00041479,2]
[359515079,1746085847753,-299.43261,0.00041495,30]
[359515080,1746085847762,-211.34,0.00041541,2]
[359515081,1746085847771,-5550.29541048,0.0004159,44]
[359515082,1746085847781,-150.0,0.00041605,30]
[359515083,1746085847792,-150.0,0.00041616,2]
[359515084,1746085847802,-5800.0,0.00041644,14]
[359515085,1746085847811,-1000.0,0.00041659,14]
[359515086,1746085847820,-166.67,0.00041687,2]
[359515087,1746085847831,-299.43261,0.00041695,30]
[359515088,1746085847840,-160.0,0.000417,66]
[359515089,1746085847850,-500.0,0.000417,10]
[359515090,1746085847859,-150.0,0.00041748,30]
[359515091,1746085847868,-150.0,0.00041753,2]